Cogmind - Beta 15 @@@ ROGUE MODE // 2025.05.31 @ 21:39:54 Player: saltine Result: Destroyed by MAIN.C with High-powered Disruptor Cannon Performance ------------- Evolutions (9) 4500 Regions Visited (26) 5200 Robots Destroyed (234) 1170 Value Destroyed (8491) 8491 Prototype IDs (50) 1000 Alien Tech Used (1) 200 Bonus (11741) 11741 TOTAL SCORE: 32302 Bonus ------- High Alert Combat Kills 31 Follower Combat Kills 50 Entered Garrisons 600 Acquired ECA 300 Met Warlord at Base 500 MAIN.C Attacked Warlord 500 Warlord Defense Kills 1420 Met Warlord at Research 2000 Destroyed MAIN.C Guards 500 Met MAIN.C 5000 Met Warlord at Command 2000 Friendly Fire -1160 Cogmind --------- Core Integrity 0/1600 Matter 79/300 Energy 82/100 System Corruption 21% Temperature Cool (0) Movement Core (50) Location -1/Command Parts ------- > --- POWER (2) -------- (None) > --- PROPULSION (8) --- (None) > --- UTILITY (11) ----- Advanced Signal Interpreter Experimental Melee Analysis Suite Advanced Hacking Suite > --- WEAPON (4) ------- (None) > --- INVENTORY (5) ---- Experimental Actuator Array Advanced Phase Shifter Peak State ------------ > --- POWER ------------ Micro Antimatter Reactor Micro Antimatter Reactor > --- PROPULSION ------- Improved Cesium-ion Thruster Diametric Drive Electron Diverter Electron Diverter Electron Diverter Experimental Q-thruster Experimental Q-thruster Experimental Q-thruster > --- UTILITY ---------- Experimental Power Amplifier Advanced Cooling System Experimental Cooling System Medium Storage Unit Experimental Optical Array Advanced Sensor Array Advanced Signal Interpreter Advanced Transmission Jammer Experimental Cloaking Device Advanced Hacking Suite Ghost Barrier > --- WEAPON ----------- Heavy Quantum Rifle Null Cannon Sigix Broadsword > --- INVENTORY -------- Micro Fission Core Gravity Neutralizer Experimental Melee Analysis Suite Experimental Actuator Array Advanced Phase Shifter Improved Point Defense System Omega Cannon Fusion Bomb Launcher [Rating: 222] Favorites ----------- Power Micro Fission Core Engine Light Angular Momentum Engine Power Core Micro Fission Core Reactor Micro Antimatter Reactor Propulsion Light Treads Treads Light Treads Leg Aluminum Leg Wheel Compact Wheel Flight Unit Improved Cesium-ion Thruster Utility Hacking Suite Device Seismic Detector Storage Large Storage Unit Processor Enhanced Optical Array Hackware Hacking Suite Protection Light Armor Plating Weapon Mini Assault Cannon Energy Gun Medium Laser Energy Cannon Null Cannon Ballistic Gun Assault Rifle Ballistic Cannon Mini Assault Cannon Launcher Fusion Bomb Launcher Special Weapon Improved Plasma Cutter Impact Weapon Powered Hammer Slashing Weapon Sigix Broadsword Build | -11 -10 -9 -9 -8 -7 -7 -6 -6 -6 -6 -5 -5 -5 -5 -5 -4 -4 -4 -4 -3 -3 -3 -2 -2 -1 -1 ------- Run | Yrd Mat Mat Sto Mat Fac Gar Fac Gar Fac Gar Fac Was Fac Upp Upp Fac Upp Upp War Pro Res Qua Res Tes Acc Com Slots Evolved 18 | . . 2 . 2 2 . 2 . . . 2 . . . . 2 . . . . 2 . 2 . 2 . Power 1 | . . . . . . . . . . . . . . . . . . . . . 1 . . . . . Propulsion 6 | . . 1 . . 1 . . . . . 1 . . . . 1 . . . . 1 . 1 . . . Utility 9 | . . 1 . 2 1 . 2 . . . . . . . . 1 . . . . . . . . 2 . Weapon 2 | . . . . . . . . . . . 1 . . . . . . . . . . . 1 . . . Parts Attached 212 | 3 9 29 14 44 20 5 11 1 3 . 3 . 1 . . 9 1 1 11 . 12 1 15 8 4 7 Power 21 | . 1 3 . 6 2 2 1 . . . 1 . . . . . . . 1 . 1 . 2 . . 1 Engine 9 | . 1 2 . 3 1 . 1 . . . 1 . . . . . . . . . . . . . . . Core 9 | . . 1 . 3 1 2 . . . . . . . . . . . . 1 . 1 . . . . . Reactor 3 | . . . . . . . . . . . . . . . . . . . . . . . 2 . . 1 Propulsion 64 | 2 3 14 7 14 8 . . . . . 1 . . . . 4 . . 2 . 4 1 1 2 1 . Treads 35 | 2 1 10 6 13 3 . . . . . . . . . . . . . . . . . . . . . Leg 1 | . . 1 . . . . . . . . . . . . . . . . . . . . . . . . Wheel 5 | . 2 3 . . . . . . . . . . . . . . . . . . . . . . . . Hover . | . . . . . . . . . . . . . . . . . . . . . . . . . . . Flight 23 | . . . 1 1 5 . . . . . 1 . . . . 4 . . 2 . 4 1 1 2 1 . Utility 82 | 1 2 5 3 13 7 2 10 1 3 . . . 1 . . 3 . 1 5 . 6 . 9 2 3 5 Device 34 | 1 1 . 1 3 2 1 4 1 1 . . . . . . 2 . . 3 . 1 . 6 2 3 2 Storage 4 | . 1 1 . . . . . . . . . . . . . . . . . . . . 2 . . . Processor 12 | . . . . 1 1 . 1 . . . . . . . . . . 1 2 . 4 . 1 . . 1 Hackware 14 | . . . . 1 3 1 3 . 2 . . . 1 . . 1 . . . . 1 . . . . 1 Protection 18 | . . 4 2 8 1 . 2 . . . . . . . . . . . . . . . . . . 1 Artifact . | . . . . . . . . . . . . . . . . . . . . . . . . . . . Weapon 45 | . 3 7 4 11 3 1 . . . . 1 . . . . 2 1 . 3 . 1 . 3 4 . 1 Energy Gun 6 | . . . . 3 . . . . . . . . . . . . . . 2 . . . . 1 . . Energy Cannon 1 | . . . . . . . . . . . . . . . . . . . . . . . . 1 . . Ballistic Gun 15 | . 3 5 3 4 . . . . . . . . . . . . . . . . . . . . . . Ballistic Cannon 8 | . . . . 2 2 . . . . . . . . . . 1 . . . . . . 1 2 . . Launcher 4 | . . 1 . 1 . . . . . . . . . . . . 1 . . . . . . . . 1 Special Weapon 1 | . . . . . . . . . . . 1 . . . . . . . . . . . . . . . Impact Weapon 7 | . . 1 1 1 1 1 . . . . . . . . . 1 . . . . 1 . . . . . Slashing Weapon 3 | . . . . . . . . . . . . . . . . . . . 1 . . . 2 . . . Piercing Weapon . | . . . . . . . . . . . . . . . . . . . . . . . . . . . Special Melee Weapon . | . . . . . . . . . . . . . . . . . . . . . . . . . . . Unidentified Prototypes 31 | . . . 1 3 2 . 1 . . . 1 . . . . . . . 7 . 3 . 5 5 1 2 Corrupted Parts 1 | . . . . . . 1 . . . . . . . . . . . . . . . . . . . . System Corruption 10 | . . . . . . 10 . . . . . . . . . . . . . . . . . . . . Parts Lost 68 | . 5 5 6 16 . 1 1 . . . . . 3 1 . 1 1 . . . 1 . . . . 27 Power 10 | . 1 . 1 2 . . . . . . . . 1 . . . . . . . . . . . . 5 Propulsion 21 | . 2 2 . 6 . . . . . . . . . 1 . 1 . . . . 1 . . . . 8 Utility 25 | . 1 2 4 5 . 1 1 . . . . . 1 . . . 1 . . . . . . . . 9 Weapon 12 | . 1 1 1 3 . . . . . . . . 1 . . . . . . . . . . . . 5 Highest Loss Streak 18 | . 2 2 3 8 . 1 1 . . . . . 3 1 . 1 1 . . . 1 . . . . 18 To Critical Strikes . | . . . . . . . . . . . . . . . . . . . . . . . . . . . Average Backups 9 | 6 10 14 14 14 6 5 4 5 5 5 5 5 4 3 4 4 4 4 4 5 4 4 6 8 8 7 Power . | 1 . 1 1 . 1 1 1 1 1 1 1 1 . . . . 1 1 1 1 . 1 1 1 1 . Propulsion 2 | 3 3 2 4 5 1 . . . . . . . . . . . . . . . . . . . . . Utility 2 | . . 4 4 4 2 3 2 3 3 3 3 3 2 2 2 2 2 2 1 2 2 1 3 5 4 4 Weapon 3 | 1 5 7 5 4 1 1 1 1 1 1 1 1 1 1 1 1 1 1 2 2 2 2 2 2 2 2 Tool/Special . | . . . . . . . . . . . . . . . . . . . . . . . . . . . Unused Backups 36 | 4 3 11 1 7 1 . . . . . . . . . . . 1 . 1 . 1 1 2 2 . 1 Power 5 | 1 1 3 . . . . . . . . . . . . . . . . . . . . . . . . Propulsion 2 | . . 1 1 . . . . . . . . . . . . . . . . . . . . . . . Utility 9 | 1 1 . . . 1 . . . . . . . . . . . . . . . 1 1 1 2 . 1 Weapon 19 | 2 1 7 . 7 . . . . . . . . . . . . . . 1 . . . 1 . . . Tool/Special 1 | . . . . . . . . . . . . . . . . . 1 . . . . . . . . . Average Slot Usage (%) 91 | . 83 95 87 92 98 99 98 100 99 100 90 94 94 87 82 89 92 91 93 94 93 90 85 87 91 69 Engine 4 | . 14 8 . 6 . . 3 6 6 6 5 5 5 . . . . . . . . . . . . . Core 2 | . . 2 5 1 6 7 2 . . . . . . 5 5 5 5 5 5 5 9 9 4 . . . Treads 10 | . 13 17 29 26 5 . . . . . . . . . . . . . . . . . . . . . Wheel 2 | . 7 11 2 . . . . . . . . . . . . . . . . . . . . . . . Flight 14 | . . . . . 24 30 26 26 26 26 23 23 23 22 17 27 31 31 30 31 32 28 31 34 32 22 Device 8 | . 5 5 4 5 8 14 13 13 8 11 11 11 10 10 11 13 12 7 13 15 5 4 10 16 22 11 Storage 6 | . 14 12 15 9 1 . . . . . . . . . . . . . . . . . 2 4 4 3 Processor 5 | . . . . 8 9 7 6 6 6 6 5 5 5 5 5 5 5 5 5 10 21 23 13 8 8 9 Hackware 11 | . . . . 4 19 23 26 26 31 33 29 29 29 29 29 26 26 26 25 21 14 14 10 8 8 11 Protection 4 | . . 12 7 12 3 . 3 6 5 1 . . . . . . 1 5 1 . . . . . . . Energy Gun 1 | . 6 . . 3 . . . . . . . . . . . . . . . . . . . . 4 2 Ballistic Gun 8 | . 21 21 18 9 . . . . . . . . . . . . . . . . . . . . . . Ballistic Cannon 3 | . . . . 3 7 7 6 6 5 6 5 5 5 5 5 5 5 5 5 5 4 4 2 . . . Impact Weapon 2 | . . . 3 1 6 7 6 6 6 4 5 5 5 5 5 5 3 4 . . 3 2 . . . . Peak Build Rating 222 | 7 8 18 18 36 49 52 70 70 70 65 77 70 73 69 59 86 95 92 118 116 148 149 179 198 222 210 Average Rating 58 | 6 6 14 15 26 43 50 64 69 66 63 66 70 71 63 59 78 86 89 101 116 139 141 164 179 205 153 On Entrance 79 | 6 7 8 18 16 32 49 47 70 70 64 64 70 70 66 59 59 86 90 91 116 116 140 149 174 192 210 Naked Turns . | . . . . . . . . . . . . . . . . . . . . . . . . . . . Heaviest Build 60 | 13 30 40 37 43 37 18 20 22 22 22 21 20 20 15 15 27 35 35 27 26 31 38 54 54 54 60 Greatest Support 91 | 40 40 40 63 63 91 24 22 22 22 22 22 22 22 22 17 35 35 35 35 34 40 42 56 57 67 67 Greatest Overweight (x) 9 | . 9 3 . . . . . . . . . . . . . . . . . . . . . . . 3 Average Overweight (x) . | . . 2 . . . . . . . . . . . . . . . . . . . . . . . . Largest Inventory Capacity 15 | 8 15 15 15 15 15 5 5 5 5 5 5 5 5 5 5 5 5 5 5 5 5 5 10 10 10 10 Average Capacity 10 | 8 13 15 15 15 6 5 5 5 5 5 5 5 5 5 5 5 5 5 5 5 5 5 7 10 10 9 Most Carried 15 | 7 15 15 15 15 15 5 5 5 5 5 5 5 5 4 4 5 5 5 5 5 5 5 10 10 10 10 Average Carried 9 | 6 10 14 14 14 6 4 4 5 5 5 4 5 4 3 4 4 4 4 4 5 4 4 7 9 9 7 Final Capacity 15 | 8 15 15 15 15 5 5 5 5 5 5 5 5 5 5 5 5 5 5 5 5 5 5 10 10 10 5 Final Carried 15 | 7 14 15 15 15 5 5 5 5 5 5 5 5 3 4 4 5 5 4 5 5 5 5 10 10 10 2 Class Distribution -------------------- 37% | Hacker-Sprinter 25% | Mutant 24% | Scavenger-Mutant 7% | Hacker-Scout Dominant Class ---------------- Mutant | -10/Materials Scavenger-Mutant | -9/Materials Mutant | -9/Storage Scavenger-Mutant | -8/Materials Hacker-Sprinter | -7/Factory Hacker-Sprinter | -7/Garrison Hacker-Sprinter | -6/Factory Hacker-Sprinter | -6/Garrison Hacker-Sprinter | -6/Factory Hacker-Sprinter | -6/Garrison Hacker-Sprinter | -5/Factory Hacker-Sprinter | -5/Waste Hacker-Sprinter | -5/Factory Hacker-Sprinter | -5/Upper Caves Hacker-Sprinter | -5/Upper Caves Hacker-Sprinter | -4/Factory Hacker-Sprinter | -4/Upper Caves Hacker-Sprinter | -4/Upper Caves Hacker-Sprinter | -4/Warlord Hacker-Sprinter | -3/Proximity Caves Hacker-Scout | -3/Research Hacker-Scout | -3/Quarantine Hacker-Scout | -2/Research Hacker-Scout | -2/Testing Hacker-Ninja | -1/Access Hacker-Sprinter | -1/Command Resources | -11 -10 -9 -9 -8 -7 -7 -6 -6 -6 -6 -5 -5 -5 -5 -5 -4 -4 -4 -4 -3 -3 -3 -2 -2 -1 -1 ----------- Run | Yrd Mat Mat Sto Mat Fac Gar Fac Gar Fac Gar Fac Was Fac Upp Upp Fac Upp Upp War Pro Res Qua Res Tes Acc Com Matter Collected 7235 | 266 574 1262 644 1197 304 50 450 . 131 . 83 70 140 86 . 105 144 152 662 . 207 28 306 124 100 150 Remotely . | . . . . . . . . . . . . . . . . . . . . . . . . . . . Salvage Created 9794 | 175 990 1694 1084 1772 231 61 280 . 131 . 73 . 140 . . 103 70 140 533 . 246 105 895 201 442 428 Parts 460 | 13 64 96 61 99 8 2 3 . 5 . 2 . 1 . . 5 3 2 25 . 2 1 18 14 15 21 Haulers Intercepted 31 | . 2 5 2 6 3 . 2 . . . 1 . . . . . . . . . 2 1 5 . 2 . Recyclers Shooed 7 | . 2 2 2 1 . . . . . . . . . . . . . . . . . . . . . . Parts Field Recycled . | . . . . . . . . . . . . . . . . . . . . . . . . . . . Retrieved Matter . | . . . . . . . . . . . . . . . . . . . . . . . . . . . Parts Self-Destructed 2 | . . . . . . . . . . . . . . . . . 2 . . . . . . . . . Prevented . | . . . . . . . . . . . . . . . . . . . . . . . . . . . Kills | -11 -10 -9 -9 -8 -7 -7 -6 -6 -6 -6 -5 -5 -5 -5 -5 -4 -4 -4 -4 -3 -3 -3 -2 -2 -1 -1 ------- Run | Yrd Mat Mat Sto Mat Fac Gar Fac Gar Fac Gar Fac Was Fac Upp Upp Fac Upp Upp War Pro Res Qua Res Tes Acc Com Combat Hostiles Destroyed 134 | . 17 33 21 33 2 3 . . 3 . . . . . . . 4 . 12 . . . . . 2 4 Melee 8 | . . . . 3 . 2 . . 1 . . . . . . . . . . . . . . . . 2 Guns 88 | . 17 26 21 22 . . . . . . . . . . . . . . . . . . . . 2 . Cannons 19 | . . . . 3 2 . . . . . . . . . . . . . 12 . . . . . . 2 AOE 17 | . . 7 . 4 . . . . 2 . . . . . . . 4 . . . . . . . . . Classes Destroyed 17 | 3 5 2 . 2 . . . . . . . . . . . . . 1 3 . . . . 1 . . Worker 9 | 1 2 1 1 1 . . . . 1 . . . . . . 1 . . . . . . 1 . . . Builder 10 | . . . . 1 1 . 1 . 1 . . . . . . 2 . . . . . . . 4 . . Tunneler 8 | 5 . 2 . . . . . . . . . . . . . . . . . . . . . . 1 . Hauler 31 | . 2 5 2 6 3 . 2 . . . 1 . . . . . . . . . 2 1 5 . 2 . Recycler 13 | 1 1 5 2 1 . . . . . . . . 1 . . . . . . . . . 2 . . . Operator 11 | . 4 2 1 1 . . . . . . . . . . . . . . . . . . 1 . 1 1 Watcher 16 | . 2 . . . . . 3 . 2 . . . . . . 1 . . . . 1 . 2 1 . 4 Swarmer 41 | . 2 15 7 4 . 3 . . 3 . . . . . . . 4 . 3 . . . . . . . Grunt 49 | . 15 8 6 15 . . . . . . . . . . . . . . 4 . . . . . 1 . Brawler 1 | . . 1 . . . . . . . . . . . . . . . . . . . . . . . . Protector 1 | . . . . . . . . . . . . . . . . . . . 1 . . . . . . . Sentry 31 | . . 9 8 11 2 . . . . . . . . . . . . . 1 . . . . . . . Specialist 1 | . . . . . . . . . . . . . . . . . . . 1 . . . . . . . Hunter 4 | . . . . 3 . . . . . . . . . . . . . . . . . . . . 1 . Programmer 5 | . . . . . . . . . . . . . . . . . . . 3 . . . . . . 2 Combat Programmer 2 | . . . . . . . . . . . . . . . . . . . . . . . . . . 2 Decomposer 7 | . . . . . . . . . . . . . . . . . 1 6 . . . . . . . . Samaritan 1 | . . . . . . . . . . . . . . . . . . 1 . . . . . . . . Knight 1 | . . . . . . . . . . . . . . . . . . . . . . . . 1 . . Best Kill Streak 8 | 4 3 6 5 8 1 3 1 . 3 . 1 . 1 . . 3 4 . 6 . 1 1 4 4 2 2 Combat Bots Only 7 | . 3 4 5 7 1 3 . . 3 . . . . . . . 4 . 6 . . . . . 1 1 Max Kills in Single Turn 5 | 1 2 5 1 3 1 1 1 . 2 . 1 . 1 . . 1 4 1 2 . 1 1 1 1 1 1 Gunslinging . | . . . . . . . . . . . . . . . . . . . . . . . . . . . Exploded 4 | . . 3 . 3 . . . . 2 . . . . . . . 4 . . . . . . . . . Melee 1 | . . . . 1 . 1 . . 1 . . . . . . . . . . . . . . . . 1 Uniques/NPCs Destroyed . | . . . . . . . . . . . . . . . . . . . . . . . . . . . Combat | -11 -10 -9 -9 -8 -7 -7 -6 -6 -6 -6 -5 -5 -5 -5 -5 -4 -4 -4 -4 -3 -3 -3 -2 -2 -1 -1 -------- Run | Yrd Mat Mat Sto Mat Fac Gar Fac Gar Fac Gar Fac Was Fac Upp Upp Fac Upp Upp War Pro Res Qua Res Tes Acc Com Hostile Shots Fired 1060 | . 96 150 99 258 69 39 30 4 14 5 9 . 39 19 . . 18 . 4 . 15 . 14 15 1 162 Missed 338 | . 23 40 25 51 30 18 13 2 7 1 5 . 24 13 . . 12 . 1 . 9 . 8 9 . 47 Intercepted 1 | . . . . . . . . . . . . . . . . . . . . . . . . . . 1 Hits 722 | . 73 110 74 207 39 21 17 2 7 4 4 . 15 6 . . 6 . 3 . 6 . 6 6 1 115 Melee 6 | . . . . . . . . . . . . . . . . . . . . . . . . . . 6 Projectile 716 | . 73 110 74 207 39 21 17 2 7 4 4 . 15 6 . . 6 . 3 . 6 . 6 6 1 109 AOE 13 | . . . . . . . . . . . . . . . . . . . . . . . . . . 13 Critical Strikes 20 | . 1 3 1 6 . . 1 . . . . . . . . . 1 . . . . . . . . 7 Part Disruptions 4 | . . . . . . . . . . . . . . . . . . . . . . . . . . 4 Damage Taken 13718 | . 854 1243 1035 3165 438 312 203 29 79 66 80 . 273 109 . 66 102 . 51 . 169 . 163 146 66 5069 Core 2836 | . 199 156 44 271 84 133 97 . 19 34 25 . 32 20 . 3 . . . . 64 . . 24 45 1586 Absorbed by Shields 51 | . . . . . . . . . . . . . . . . . . . 51 . . . . . . . Redirected to Shielding 82 | . . . . . . . 13 . 15 . . . 21 20 . . 13 . . . . . . . . . Regen/Repaired (Parts) 675 | . . 82 . 63 24 . . . 15 . . . . . . . . . 42 . . . 71 107 50 221 Core Remaining (%) 75 | 100 20 . 50 50 . 69 . . . 82 . . . . 92 . . . . 99 . 95 . 98 . . Volleys Fired 647 | 12 103 107 69 120 8 5 34 15 1 1 1 11 1 25 . . 3 . 53 5 5 3 6 8 20 31 Largest 2 | 2 2 2 2 2 2 1 1 1 1 1 1 1 1 1 . . 1 . 1 1 1 1 1 1 1 1 Hottest 132 | 70 70 50 50 132 80 40 40 40 39 39 40 40 40 40 . . 52 . 60 60 60 60 60 130 130 130 Shots Fired 1050 | 24 202 211 137 233 14 5 35 15 1 1 1 11 1 26 . . 3 . 53 5 5 3 6 8 20 30 Gun 803 | 24 202 208 137 204 . . . . . . . . . . . . . . 1 . . . . 3 17 7 Cannon 234 | . . . . 27 14 5 35 14 . . 1 11 1 26 . . . . 52 5 5 3 6 5 3 21 Launcher 13 | . . 3 . 2 . . . 1 1 1 . . . . . . 3 . . . . . . . . 2 Special . | . . . . . . . . . . . . . . . . . . . . . . . . . . . Kinetic 891 | 12 148 208 137 196 14 5 35 14 . . 1 11 1 26 . . . . 52 5 5 3 6 1 . 11 Thermal 135 | 12 54 . . 25 . . . . . . . . . . . . . . . . . . . 7 20 17 Explosive 13 | . . 3 . 2 . . . 1 1 1 . . . . . . 3 . . . . . . . . 2 Electromagnetic 10 | . . . . 10 . . . . . . . . . . . . . . . . . . . . . . Entropic 1 | . . . . . . . . . . . . . . . . . . . 1 . . . . . . . Robot Hit Streak 35 | 3 19 24 14 35 11 . 1 . . . . 7 . 4 . . . . 6 . 4 5 5 . 2 7 Robot Miss Streak 11 | 3 11 3 1 3 1 . 2 . . . . 1 . 1 . . . . 6 . 2 1 4 . 2 4 Penetration Max . | . . . . . . . . . . . . . . . . . . . . . . . . . . . Secondary Targets 9 | . 1 2 . 6 . . . . . . . . . . . . . . . . . . . . . . Max Gunslinging Chain 1 | . 1 1 . 1 . . . . . . . . . . . . . . . . . . . . . . Shots Hit Robots 799 | 11 120 144 103 194 22 5 7 . 5 . 4 10 1 17 . 5 1 7 46 . 9 4 25 11 14 34 Core Hits 322 | 7 47 69 35 65 4 . . . 4 . . 1 . 3 . 4 3 1 34 . 6 1 13 5 5 15 Critical Kills 1 | . . 1 . . . . . . . . . . . . . . . . . . . . . . . . Critical Parts Destroyed 9 | . . 1 . 3 2 1 . . . . . . . . . . . 1 . . . 1 . . . . Critical Strikes 25 | . 2 2 1 4 2 1 . . . . . 1 . . . . . 1 2 . 3 1 1 . 1 3 Burn 2 | . 2 . . . . . . . . . . . . . . . . . . . . . . . . . Destroy 4 | . . 2 1 1 . . . . . . . . . . . . . . . . . . . . . . Blast 6 | . . . . 1 . . . . . . . 1 . . . . . . 2 . . . . . . 2 Smash 7 | . . . . 2 2 1 . . . . . . . . . . . 1 . . . 1 . . . . Sever 6 | . . . . . . . . . . . . . . . . . . . . . 3 . 1 . 1 1 Melee Attacks 398 | . . 3 5 18 50 28 39 4 11 . 14 1 16 9 . 7 3 10 1 13 31 16 33 32 19 35 Impact 258 | . . 3 5 18 50 28 39 4 11 . 14 1 16 9 . 7 3 10 . . 24 16 . . . . Slashing 140 | . . . . . . . . . . . . . . . . . . . 1 13 7 . 33 32 19 35 Piercing . | . . . . . . . . . . . . . . . . . . . . . . . . . . . Sneak Attacks 55 | . . . 1 2 4 1 3 . 2 . 1 . 1 . . 3 1 7 . . 2 1 9 9 4 4 Combat Hostiles 1 | . . . . . . 1 . . . . . . . . . . . . . . . . . . . . Follow-up Attacks . | . . . . . . . . . . . . . . . . . . . . . . . . . . . Damage Inflicted 29207 | 154 1586 2711 1917 4356 1044 254 583 . 552 . 234 295 74 474 . 379 467 669 2837 . 541 340 2724 1769 1522 3725 Guns 8692 | 154 1560 2224 1851 2690 . . . . . . . . . . . . . . . . . . . . 204 9 Cannons 6398 | . . . . 514 241 . 61 . . . . 295 . 474 . . . . 2837 . 150 110 180 . . 1536 Explosions 1973 | . . 474 . 389 . . 86 . 172 . . . . . . . 357 . . . . . . . . 495 Melee 12047 | . . . 40 731 803 254 436 . 380 . 234 . 74 . . 379 110 669 . . 391 230 2544 1769 1318 1685 Ramming 97 | . 26 13 26 32 . . . . . . . . . . . . . . . . . . . . . . Kinetic 13480 | 106 1175 2224 1851 2781 241 . 61 . . . . 295 . 474 . . . . 2837 . 150 110 180 . . 995 Thermal 1588 | 48 385 . . 315 . . 86 . . . . . . . . . . . . . . . . . 204 550 Explosive 1887 | . . 474 . 389 . . . . 172 . . . . . . . 357 . . . . . . . . 495 Electromagnetic 108 | . . . . 108 . . . . . . . . . . . . . . . . . . . . . . Impact 4451 | . . . 40 731 803 254 436 . 380 . 234 . 74 . . 379 110 669 . . 111 230 . . . . Slashing 7596 | . . . . . . . . . . . . . . . . . . . . . 280 . 2544 1769 1318 1685 Piercing . | . . . . . . . . . . . . . . . . . . . . . . . . . . . Highest Corruption 20 | . 1 . 1 . . 10 3 2 2 1 5 11 11 11 11 . . . . . . . . . 1 20 Average Corruption 3 | . 1 . 1 . . 10 1 2 1 1 5 10 11 11 11 . . . . . . . . . 1 6 Corruption Purged 5 | . . . . . . . 3 . 2 . . . . . . . . . . . . . . . . . Corruption Blocked . | . . . . . . . . . . . . . . . . . . . . . . . . . . . Effects 80 | . 9 . 1 . . 7 4 . . . 2 7 11 20 . . . . . . . . . . 2 17 Message Errors 13 | . 1 . 1 . . 2 1 . . . . 1 1 3 . . . . . . . . . . . 3 Matter Fused 18 | . 4 . . . . . . . . . 1 . 5 4 . . . . . . . . . . . 4 Heat Flow Errors 9 | . 1 . . . . . . . . . . . 3 3 . . . . . . . . . . . 2 Energy Discharges 6 | . . . . . . 3 . . . . 1 1 . 1 . . . . . . . . . . . . Parts Rejected 2 | . . . . . . . . . . . . 2 . . . . . . . . . . . . . . Data Loss (minor) 11 | . 1 . . . . . 2 . . . . 1 1 3 . . . . . . . . . . 1 2 Data Loss (major) 5 | . 1 . . . . 1 . . . . . . . 1 . . . . . . . . . . 1 1 Misfires 4 | . . . . . . . 1 . . . . . . 3 . . . . . . . . . . . . Alerts 2 | . 1 . . . . . . . . . . . . . . . . . . . . . . . . 1 Misdirections 7 | . . . . . . 1 . . . . . 2 1 . . . . . . . . . . . . 3 Weapon Failures 3 | . . . . . . . . . . . . . . 2 . . . . . . . . . . . 1 Overload Shots . | . . . . . . . . . . . . . . . . . . . . . . . . . . . Overflow Damage 3672 | . . 27 10 268 218 121 332 . 189 . 8 . 44 . . 38 173 491 75 . . 122 566 226 402 362 Projectiles 91 | . . . . 16 . . . . . . . . . . . . . . 75 . . . . . . . Explosions 192 | . . 27 . 43 . . 56 . . . . . . . . . 66 . . . . . . . . . Melee 3389 | . . . 10 209 218 121 276 . 189 . 8 . 44 . . 38 107 491 . . . 122 566 226 402 362 Knockbacks 16 | . . . . 3 1 . . . 3 . . . . . . 1 . . 3 . 2 1 2 . . . Impact 8 | . . . . 2 1 . . . 3 . . . . . . 1 . . . . 1 . . . . . Kinetic 8 | . . . . 1 . . . . . . . . . . . . . . 3 . 1 1 2 . . . Secondary . | . . . . . . . . . . . . . . . . . . . . . . . . . . . Self-Inflicted Damage 54 | . 1 . . . . . . . . . . . . . . . . . . . . . . . . 53 Shots 2 | . . . . . . . . . . . . . . . . . . . . . . . . . . 2 Rammed 22 | . 7 1 6 8 . . . . . . . . . . . . . . . . . . . . . . Targets Rammed 26 | . 7 2 8 9 . . . . . . . . . . . . . . . . . . . . . . Kicked . | . . . . . . . . . . . . . . . . . . . . . . . . . . . Crushed 4 | . . 1 2 1 . . . . . . . . . . . . . . . . . . . . . . Highest Temperature 476 | 27 247 105 198 348 39 10 12 3 . 9 . . 233 226 . 5 33 38 187 42 236 127 476 164 . 220 Average Temperature 50 | 9 48 23 51 78 18 5 7 3 . 9 . . 92 98 . 5 14 13 57 10 57 47 48 54 . 50 Received Heat Transfer 2775 | . 426 351 360 1188 72 36 51 . 12 18 9 . 27 9 . . . . . . 18 . 9 . . 189 Effects 3 | . . . . 1 . . . . . . . . . . . . . . . . . . 2 . . . Interference 1 | . . . . 1 . . . . . . . . . . . . . . . . . . . . . . Short Circuit 2 | . . . . . . . . . . . . . . . . . . . . . . . 2 . . . Siege Activations . | . . . . . . . . . . . . . . . . . . . . . . . . . . . Martial Activations . | . . . . . . . . . . . . . . . . . . . . . . . . . . . Shielding Activations . | . . . . . . . . . . . . . . . . . . . . . . . . . . . Robots Disrupted . | . . . . . . . . . . . . . . . . . . . . . . . . . . . Combat Hostiles . | . . . . . . . . . . . . . . . . . . . . . . . . . . . Robots Corrupted 18 | . . . . 2 4 1 4 . 3 . 1 . 1 . . 1 . . . . . 1 . . . . Combat Hostiles 2 | . . . . 1 . 1 . . . . . . . . . . . . . . . . . . . . Parts Fried 27 | . . . . 1 2 3 7 . 4 . 2 . 2 . . 1 . 2 1 . . 2 . . . . Impact Corruptions 54 | . . . 1 4 9 4 5 . 7 . 1 . 2 . . 1 2 17 . . . 1 . . . . Robots Melted . | . . . . . . . . . . . . . . . . . . . . . . . . . . . Combat Hostiles . | . . . . . . . . . . . . . . . . . . . . . . . . . . . Parts Melted 1 | . 1 . . . . . . . . . . . . . . . . . . . . . . . . . Heat Transferred 2539 | 148 1295 . . 629 . . 50 . . . . . . . . . . . . . . . . . 185 232 Parts Sabotaged . | . . . . . . . . . . . . . . . . . . . . . . . . . . . Parts Stolen . | . . . . . . . . . . . . . . . . . . . . . . . . . . . Parts Stripped . | . . . . . . . . . . . . . . . . . . . . . . . . . . . Power Chain Reactions . | . . . . . . . . . . . . . . . . . . . . . . . . . . . Alert | -11 -10 -9 -9 -8 -7 -7 -6 -6 -6 -6 -5 -5 -5 -5 -5 -4 -4 -4 -4 -3 -3 -3 -2 -2 -1 -1 ------- Run | Yrd Mat Mat Sto Mat Fac Gar Fac Gar Fac Gar Fac Was Fac Upp Upp Fac Upp Upp War Pro Res Qua Res Tes Acc Com Maximum Alert Level 2 | . . 2 2 1 . 2 1 2 1 1 . . 1 . . . . . . . . . . . . . Low Security (%) 68 | 100 100 59 3 59 100 22 26 5 . 33 100 100 98 . . 100 . . . . 100 100 100 100 100 100 Level 1 26 | . . 35 68 40 . 29 73 45 100 66 . . 1 . . . . . . . . . . . . . Level 2 5 | . . 5 28 . . 47 . 49 . . . . . . . . . . . . . . . . . . Level 3 . | . . . . . . . . . . . . . . . . . . . . . . . . . . . Level 4 . | . . . . . . . . . . . . . . . . . . . . . . . . . . . Level 5 . | . . . . . . . . . . . . . . . . . . . . . . . . . . . High Security . | . . . . . . . . . . . . . . . . . . . . . . . . . . . Max Security . | . . . . . . . . . . . . . . . . . . . . . . . . . . . Peak Influence 647 | 5 147 492 471 386 192 647 395 462 302 253 180 72 217 . . 15 . . . . 194 123 52 80 107 169 Initial 339 | . . 11 206 160 124 79 339 190 242 198 132 52 9 . . . . . . . 150 97 39 26 46 54 Average 157 | 2 68 131 353 200 137 323 255 373 256 234 143 40 23 . . 2 . . . . 155 96 23 52 74 91 Influence Increases 8319 | 35 616 991 681 1209 423 578 605 272 151 55 128 32 327 45 . 51 240 . 403 . 344 113 234 192 209 385 Destroy 0b10 Robot/C 2680 | . 340 660 420 660 40 60 . . 60 . . . . . . . 80 . 240 . . . . . 40 80 Destroy 0b10 Robot/NC 495 | 35 55 75 30 50 20 . 30 . 20 . 5 . 5 . . 20 . . 5 . 15 5 55 25 20 25 Destroy Leader 732 | . 98 170 144 202 26 . 8 . 14 . 2 . . . . 2 10 . . . 6 2 14 2 14 18 Allied During Kill 54 | . . . . . . . . . . . . . . . . . . . 53 . . . . . . 1 Successful Hack 434 | . 60 19 8 30 57 . 35 18 26 . . . 35 . . 10 . . . . 18 56 . 18 5 39 Disable Machine 585 | . . 15 45 75 45 15 180 30 15 . 15 . . . . . . . . . 30 30 . 75 . 15 Anti-Garrison Action 450 | . . . . . . 250 . 150 . 50 . . . . . . . . . . . . . . . . Destroy Structure 729 | . 3 22 4 27 25 73 52 74 16 5 16 2 32 . . 4 . . . . 50 20 45 57 70 132 Advance Influence 150 | . . . . . . . . . . . . . . . . . . . . . 150 . . . . . Partial Spotted 360 | . 15 . . . 90 15 60 . . . 15 30 15 . . 15 . . . . 30 . 15 . 15 45 Lose Combat Pursuer 1650 | . 45 30 30 165 120 165 240 . . . 75 . 240 45 . . 150 . 105 . 45 . 105 15 45 30 Influence Decreases 8319 | 35 587 530 790 1315 585 44 980 82 330 85 231 168 144 242 . 39 92 121 222 220 170 217 257 161 202 470 Entered New Map 2188 | . . 18 284 221 151 34 308 82 220 85 121 98 5 74 . . 5 31 39 220 . 77 31 21 32 31 Time Decay 4758 | 35 537 431 446 634 404 . 362 . 110 . 110 50 97 161 . 39 77 90 143 . 160 130 226 140 170 206 Lost Part 610 | . 50 50 60 160 . 10 10 . . . . . 30 7 . . 10 . . . 10 . . . . 213 Lost Ally 130 | . . . . . 30 . . . . . . 20 10 . . . . . 40 . . 10 . . . 20 Purge Threat 633 | . . 31 . 300 . . 300 . . . . . 2 . . . . . . . . . . . . . Squads Dispatched 58 | . 5 3 5 8 6 . 4 . . . 2 . 3 . . . . . . . 3 2 1 6 5 5 Investigation 10 | . 1 1 . 1 2 . 2 . . . . . 1 . . . . . . . . . . 2 . . Extermination 13 | . . . . . 2 . 2 . . . 1 . 1 . . . . . . . 1 1 . 2 1 2 Reinforcement 26 | . 4 2 2 4 2 . . . . . 1 . 1 . . . . . . . 2 1 1 2 1 3 Assault . | . . . . . . . . . . . . . . . . . . . . . . . . . . . Garrison 9 | . . . 3 3 . . . . . . . . . . . . . . . . . . . . 3 . Intercept . | . . . . . . . . . . . . . . . . . . . . . . . . . . . Searches Triggered . | . . . . . . . . . . . . . . . . . . . . . . . . . . . Construction Impeded . | . . . . . . . . . . . . . . . . . . . . . . . . . . . Haulers Reinforced 3 | . . . . . 1 . . . . . . . . . . . . . . . . . 1 . 1 . Active Scanning Responses . | . . . . . . . . . . . . . . . . . . . . . . . . . . . Cargo Convoy Interrupts . | . . . . . . . . . . . . . . . . . . . . . . . . . . . Stealth | -11 -10 -9 -9 -8 -7 -7 -6 -6 -6 -6 -5 -5 -5 -5 -5 -4 -4 -4 -4 -3 -3 -3 -2 -2 -1 -1 --------- Run | Yrd Mat Mat Sto Mat Fac Gar Fac Gar Fac Gar Fac Was Fac Upp Upp Fac Upp Upp War Pro Res Qua Res Tes Acc Com Distress Signals 29 | . 3 3 2 5 . . 4 . . . . . 1 . . . . . 1 . 2 1 4 . 2 1 Communications Jammed . | . . . . . . . . . . . . . . . . . . . . . . . . . . . Distress Signals . | . . . . . . . . . . . . . . . . . . . . . . . . . . . Times Spotted 496 | . 44 57 32 60 24 18 26 4 10 5 11 6 30 6 . 1 15 4 43 1 16 8 35 11 8 21 Peak Tracking Total 18 | . 4 5 4 9 4 10 6 4 5 5 6 6 18 3 . 1 8 4 9 2 11 4 9 5 4 10 Tactical Retreats 50 | . 2 1 1 6 4 3 8 . . . 2 . 4 3 . . 2 . 3 . 2 . 4 1 2 2 Traps | -11 -10 -9 -9 -8 -7 -7 -6 -6 -6 -6 -5 -5 -5 -5 -5 -4 -4 -4 -4 -3 -3 -3 -2 -2 -1 -1 ------- Run | Yrd Mat Mat Sto Mat Fac Gar Fac Gar Fac Gar Fac Was Fac Upp Upp Fac Upp Upp War Pro Res Qua Res Tes Acc Com Traps Triggered 25 | . 3 2 2 1 1 4 3 1 . 2 1 . . . . 2 . . . . . . . 2 1 . Indirectly . | . . . . . . . . . . . . . . . . . . . . . . . . . . . Trap Hack Attempts . | . . . . . . . . . . . . . . . . . . . . . . . . . . . Triggered . | . . . . . . . . . . . . . . . . . . . . . . . . . . . Disarmed . | . . . . . . . . . . . . . . . . . . . . . . . . . . . Reprogrammed . | . . . . . . . . . . . . . . . . . . . . . . . . . . . Reused . | . . . . . . . . . . . . . . . . . . . . . . . . . . . Traps Extracted . | . . . . . . . . . . . . . . . . . . . . . . . . . . . Installed . | . . . . . . . . . . . . . . . . . . . . . . . . . . . Triggered . | . . . . . . . . . . . . . . . . . . . . . . . . . . . Machines | -11 -10 -9 -9 -8 -7 -7 -6 -6 -6 -6 -5 -5 -5 -5 -5 -4 -4 -4 -4 -3 -3 -3 -2 -2 -1 -1 ---------- Run | Yrd Mat Mat Sto Mat Fac Gar Fac Gar Fac Gar Fac Was Fac Upp Upp Fac Upp Upp War Pro Res Qua Res Tes Acc Com Machines Disabled 51 | . . 1 3 5 3 6 12 6 1 1 1 . . . . . . . 1 . 2 2 . 6 . 1 Max in Single Turn 11 | . . 1 1 1 1 2 11 2 1 1 1 . . . . . . . 1 . 1 1 . 1 . 1 Garrison Access 6 | . . . . . 1 . 1 . . . . . 1 . . . . . . . . 1 2 . . . Garrison Relay 6 | . . . . . . 3 . 2 . 1 . . . . . . . . . . . . . . . . Phase Generator 2 | . . . . . . 1 . 1 . . . . . . . . . . . . . . . . . . Machines Repaired . | . . . . . . . . . . . . . . . . . . . . . . . . . . . Machines Dismantled . | . . . . . . . . . . . . . . . . . . . . . . . . . . . Machines Sabotaged . | . . . . . . . . . . . . . . . . . . . . . . . . . . . Overloaded Fab Kills . | . . . . . . . . . . . . . . . . . . . . . . . . . . . Hacking | -11 -10 -9 -9 -8 -7 -7 -6 -6 -6 -6 -5 -5 -5 -5 -5 -4 -4 -4 -4 -3 -3 -3 -2 -2 -1 -1 --------- Run | Yrd Mat Mat Sto Mat Fac Gar Fac Gar Fac Gar Fac Was Fac Upp Upp Fac Upp Upp War Pro Res Qua Res Tes Acc Com Machines Accessed 124 | . 9 9 8 8 19 1 14 2 6 1 2 . 7 . . 3 1 . 1 . 6 7 3 6 3 8 Terminals 87 | . 6 8 7 6 12 1 10 2 4 1 1 . 4 . . 1 . . . . 3 6 2 4 2 7 Fabricators 11 | . . . . . 3 . 2 . . . 1 . 2 . . 1 . . . . 1 . . 1 . . Repair Stations 6 | . 1 1 . 1 1 . . . 1 . . . . . . . . . . . . . . . . 1 Recycling Units 7 | . 2 . 1 1 1 . . . . . . . . . . 1 . . . . 1 . . . . . Scanalyzers 2 | . . . . . . . . . . . . . . . . . . . . . 1 . . 1 . . Garrison Access 9 | . . . . . 2 . 2 . 1 . . . 1 . . . . . . . . 1 1 . 1 . Total Hacks 343 | . 40 33 14 25 43 3 43 7 14 3 4 . 16 . . 10 5 . 1 . 16 19 7 19 4 17 Successful 181 | . 21 17 8 14 26 . 19 2 10 . 2 . 14 . . 9 5 . 1 . 5 8 2 7 2 9 Failed 162 | . 19 16 6 11 17 3 24 5 4 3 2 . 2 . . 1 . . . . 11 11 5 12 2 8 Catastrophic 25 | . 3 1 2 1 1 2 3 1 1 . 1 . . . . . . . . . . 2 3 . 1 3 Database Lockouts . | . . . . . . . . . . . . . . . . . . . . . . . . . . . Manual 144 | . 26 17 4 11 16 3 12 6 6 3 3 . 7 . . 6 . . . . 5 6 2 5 . 6 Terminals 260 | . 31 31 13 21 30 3 31 7 10 3 2 . 10 . . 5 . . . . 11 18 4 11 3 16 Fabricators 30 | . . . . . 8 . 8 . . . 2 . 5 . . 4 . . . . 2 . . 1 . . Repair Stations 11 | . 2 2 . 2 2 . . . 2 . . . . . . . . . . . . . . . . 1 Recycling Units 14 | . 7 . 1 2 1 . . . . . . . . . . 1 . . . . 2 . . . . . Scanalyzers 8 | . . . . . . . . . . . . . . . . . . . . . 1 . . 7 . . Garrison Access 14 | . . . . . 2 . 4 . 2 . . . 1 . . . . . . . . 1 3 . 1 . Terminal Hacks 91 | . 8 8 6 7 10 . 11 2 4 . . . 6 . . 4 5 . 1 . 3 6 1 3 2 4 Record 6 | . 1 . . . . . . . . . . . . . . . 5 . . . . . . . . . Part Schematic 4 | . . . . . 2 . 1 . . . . . 1 . . . . . . . . . . . . . Robot Analysis 3 | . 2 1 . . . . . . . . . . . . . . . . . . . . . . . . Prototype ID Bank 9 | . 3 2 1 1 . . . . . . . . . . . . . . . . . 1 1 . . . Open Door 6 | . . . 2 . . . . . . . . . . . . . . . 1 . . . . . 2 1 Branch Access Points 6 | . . . . . 1 . 1 . . . . . 2 . . 1 . . . . 1 . . . . . Machine Index 2 | . . . . . 1 . 1 . . . . . . . . . . . . . . . . . . . Terminal Index 4 | . . . . . 1 . 1 . 1 . . . . . . . . . . . . . . . . 1 Fabricator Index 1 | . . . . . . . . . . . . . . . . 1 . . . . . . . . . . Garrison Index 1 | . . . . . . . . . 1 . . . . . . . . . . . . . . . . . Unreport Threat 6 | . . 1 . 2 . . 2 . . . . . 1 . . . . . . . . . . . . . Locate Traps 3 | . . 1 . . . . . . 1 . . . 1 . . . . . . . . . . . . . Transport Status 3 | . . . . 3 . . . . . . . . . . . . . . . . . . . . . . Recall Investigation 2 | . . . . . 1 . 1 . . . . . . . . . . . . . . . . . . . Recall Extermination 3 | . . . . . 1 . 1 . . . . . . . . . . . . . . 1 . . . . Hauler Manifests 10 | . 1 1 1 1 1 . 1 . . . . . . . . 1 . . . . 1 1 . 1 . . Registered Components 5 | . . . . . 1 . . . . . . . 1 . . 1 . . . . . 1 . . . 1 Registered Prototypes 2 | . . . . . . . . . 1 . . . . . . . . . . . . . . 1 . . Zone Layout 12 | . 1 2 2 . 1 . 2 . . . . . . . . . . . . . 1 2 . 1 . . Garrison Registry 2 | . . . . . . . . 2 . . . . . . . . . . . . . . . . . . Disengage Seal 1 | . . . . . . . . . . . . . . . . . . . . . . . . . . 1 Fabricator Hacks 17 | . . . . . 5 . 4 . . . 1 . 3 . . 2 . . . . 1 . . 1 . . Network Status 6 | . . . . . 1 . 1 . . . 1 . 1 . . . . . . . 1 . . 1 . . Load Schematic 7 | . . . . . 2 . 2 . . . . . 2 . . 1 . . . . . . . . . . Build 4 | . . . . . 2 . 1 . . . . . . . . 1 . . . . . . . . . . Repair Station Hacks 10 | . 1 2 . 2 2 . . . 2 . . . . . . . . . . . . . . . . 1 Scan Component 5 | . 1 1 . 1 1 . . . 1 . . . . . . . . . . . . . . . . . Repair 4 | . . 1 . 1 1 . . . 1 . . . . . . . . . . . . . . . . . Refit 1 | . . . . . . . . . . . . . . . . . . . . . . . . . . 1 Recycling Unit Hacks 5 | . 1 . 1 1 1 . . . . . . . . . . 1 . . . . . . . . . . Retrieve Components 5 | . 1 . 1 1 1 . . . . . . . . . . 1 . . . . . . . . . . Scanalyzer 2 | . . . . . . . . . . . . . . . . . . . . . 1 . . 1 . . Insert Component 2 | . . . . . . . . . . . . . . . . . . . . . 1 . . 1 . . Garrison Access Hacks 8 | . . . . . 2 . 2 . 1 . . . 1 . . . . . . . . 1 1 . . . Unlock Access 3 | . . . . . 1 . 1 . 1 . . . . . . . . . . . . . . . . . Seal Access 5 | . . . . . 1 . 1 . . . . . 1 . . . . . . . . 1 1 . . . Unauthorized Hacks 48 | . 11 7 1 4 6 . 2 . 3 . 1 . 4 . . 2 . . . . . 1 . 2 . 4 Terminals 38 | . 8 7 1 4 6 . 1 . 2 . . . 2 . . . . . . . . 1 . 2 . 4 Track 5 | . . . 1 1 1 . 1 . . . . . . . . . . . . . . . . 1 . . Assimilate 8 | . . . . . 4 . . . . . . . 1 . . . . . . . . 1 . . . 2 Botnet 8 | . 1 1 . . 1 . . . 2 . . . . . . . . . . . . . . 1 . 2 Operators 4 | . 1 1 . 1 . . . . . . . . 1 . . . . . . . . . . . . . Skim 13 | . 6 5 . 2 . . . . . . . . . . . . . . . . . . . . . . Fabricators 6 | . . . . . . . 1 . . . 1 . 2 . . 2 . . . . . . . . . . Prioritize 1 | . . . . . . . . . . . . . . . . 1 . . . . . . . . . . Haulers 3 | . . . . . . . . . . . 1 . 1 . . 1 . . . . . . . . . . Recompile 2 | . . . . . . . 1 . . . . . 1 . . . . . . . . . . . . . Repair Stations . | . . . . . . . . . . . . . . . . . . . . . . . . . . . Recycling Units 3 | . 3 . . . . . . . . . . . . . . . . . . . . . . . . . Reject 1 | . 1 . . . . . . . . . . . . . . . . . . . . . . . . . Recyclers 1 | . 1 . . . . . . . . . . . . . . . . . . . . . . . . . Mask 1 | . 1 . . . . . . . . . . . . . . . . . . . . . . . . . Scanalyzers . | . . . . . . . . . . . . . . . . . . . . . . . . . . . Garrison Access 1 | . . . . . . . . . 1 . . . . . . . . . . . . . . . . . Reprogram 1 | . . . . . . . . . 1 . . . . . . . . . . . . . . . . . Data Cores Recovered 1 | . . . . . . . . . . . . . . . . . . . . . . . . . 1 . Used . | . . . . . . . . . . . . . . . . . . . . . . . . . . . Hacking Detections 95 | . 9 9 5 7 13 1 12 1 4 1 1 . 5 . . 3 . . . . 5 6 2 4 1 6 Full Trace Events 5 | . 1 1 . . 2 1 . . . . . . . . . . . . . . . . . . . . Feedback Events . | . . . . . . . . . . . . . . . . . . . . . . . . . . . Feedback Blocked . | . . . . . . . . . . . . . . . . . . . . . . . . . . . Robot Schematics Acquired 1 | . . . . . . . . . . . . . . . . . . . . . . . . 1 . . Robots Built . | . . . . . . . . . . . . . . . . . . . . . . . . . . . Authchips . | . . . . . . . . . . . . . . . . . . . . . . . . . . . Time . | . . . . . . . . . . . . . . . . . . . . . . . . . . . Total Robot Build Rating . | . . . . . . . . . . . . . . . . . . . . . . . . . . . Part Schematics Acquired 6 | . . . . . 2 . 1 . . . . . 1 . . . . . . . . . . 2 . . Parts Built 7 | . . . . . 4 . 2 . . . . . . . . 1 . . . . . . . . . . Authchips 2 | . . . . . . . 1 . . . . . . . . 1 . . . . . . . . . . Time 275 | . . . . . 75 . 31 . . . . . . . . 169 . . . . . . . . . . Total Part Build Rating 34 | . . . . . 18 . 10 . . . . . . . . 6 . . . . . . . . . . Parts Repaired 4 | . . 1 . 1 1 . . . 1 . . . . . . . . . . . . . . . . . Time 135 | . . 26 . 26 70 . . . 13 . . . . . . . . . . . . . . . . . Parts Recycled . | . . . . . . . . . . . . . . . . . . . . . . . . . . . Recycled Matter . | . . . . . . . . . . . . . . . . . . . . . . . . . . . Retrieved Matter . | . . . . . . . . . . . . . . . . . . . . . . . . . . . Retrieved Components 14 | . 2 . 10 . . . . . . . . . . . . 2 . . . . . . . . . . Parts Scanalyzed . | . . . . . . . . . . . . . . . . . . . . . . . . . . . Part Schematics Acquired . | . . . . . . . . . . . . . . . . . . . . . . . . . . . Parts Damaged . | . . . . . . . . . . . . . . . . . . . . . . . . . . . Bothacking | -11 -10 -9 -9 -8 -7 -7 -6 -6 -6 -6 -5 -5 -5 -5 -5 -4 -4 -4 -4 -3 -3 -3 -2 -2 -1 -1 ------------ Run | Yrd Mat Mat Sto Mat Fac Gar Fac Gar Fac Gar Fac Was Fac Upp Upp Fac Upp Upp War Pro Res Qua Res Tes Acc Com Used RIF Installer . | . . . . . . . . . . . . . . . . . . . . . . . . . . . Robots Hacked . | . . . . . . . . . . . . . . . . . . . . . . . . . . . Non-combat . | . . . . . . . . . . . . . . . . . . . . . . . . . . . Combat . | . . . . . . . . . . . . . . . . . . . . . . . . . . . Robot Hacks Applied . | . . . . . . . . . . . . . . . . . . . . . . . . . . . Relay Couplers Released 30 | . . . . . . 12 . 10 . 5 . . . . . . . . . . . . 3 . . . Machine Destruction 30 | . . . . . . 12 . 10 . 5 . . . . . . . . . . . . 3 . . . Fabnet Peak Effective % . | . . . . . . . . . . . . . . . . . . . . . . . . . . . Robots Rewired 5 | . . . . . . . . . . . . . . . . . . . 5 . . . . . . . Allies Hacked . | . . . . . . . . . . . . . . . . . . . . . . . . . . . Hacks Repelled . | . . . . . . . . . . . . . . . . . . . . . . . . . . . Allies | -11 -10 -9 -9 -8 -7 -7 -6 -6 -6 -6 -5 -5 -5 -5 -5 -4 -4 -4 -4 -3 -3 -3 -2 -2 -1 -1 -------- Run | Yrd Mat Mat Sto Mat Fac Gar Fac Gar Fac Gar Fac Was Fac Upp Upp Fac Upp Upp War Pro Res Qua Res Tes Acc Com Total Allies 13 | . . . . . 3 . . . . . . 1 1 . . . . . 5 . . 1 . . . 2 Largest Group 5 | . . . . . 2 . . . . . . 1 1 . . . . . 5 . . 1 . . . 2 Highest-Rated Group 272 | . . . . . 52 . . . . . . 31 10 . . . . . 272 . . 45 . . . 71 Highest-Rated Ally 64 | . . . . . 26 . . . . . . 31 10 . . . . . 64 . . 45 . . . 45 Initial Warlord ECA Mod 166 | . . . . . . . 5 5 10 10 10 10 10 10 10 9 9 9 9 8 8 8 7 7 6 6 Total Orders 2 | . . . . . . . . . . . . . . . . . . . 2 . . . . . . . STAY 2 | . . . . . . . . . . . . . . . . . . . 2 . . . . . . . Ally Attacks 25 | . . . . . . . . . . . . 13 . . . . . . 12 . . . . . . . Total Damage 397 | . . . . . . . . . . . . 188 . . . . . . 209 . . . . . . . Kills 1 | . . . . . . . . . . . . . . . . . . . 1 . . . . . . . Allies Corrupted 1 | . . . . . . . . . . . . . . . . . . . . . . 1 . . . . Allies Melted . | . . . . . . . . . . . . . . . . . . . . . . . . . . . Intel | -11 -10 -9 -9 -8 -7 -7 -6 -6 -6 -6 -5 -5 -5 -5 -5 -4 -4 -4 -4 -3 -3 -3 -2 -2 -1 -1 ------- Run | Yrd Mat Mat Sto Mat Fac Gar Fac Gar Fac Gar Fac Was Fac Upp Upp Fac Upp Upp War Pro Res Qua Res Tes Acc Com Active Infowar (turns) 10853 | 22 676 1028 435 1110 969 419 822 155 232 36 228 104 281 434 15 211 295 191 668 450 320 265 555 284 340 308 Optics 7346 | . . . . . 733 419 822 155 232 36 228 104 281 434 15 211 295 191 668 450 320 265 555 284 340 308 Sensors 4174 | . . . . . 179 . 456 . 55 . 212 104 249 . . 208 227 98 245 450 309 247 527 270 337 1 IFF 304 | . . . . . . . 304 . . . . . . . . . . . . . . . . . . . Structural 1279 | . . . 435 460 . . . . . . . . . . . 146 238 . . . . . . . . . Seismic 7513 | 22 676 1028 . 650 969 419 822 155 219 36 228 104 281 402 15 211 278 191 242 450 10 . . . 105 . Cloaking 378 | . . . . . . . . . . . . . . . . . . . 20 25 39 18 3 12 204 57 Jamming 471 | . . . . . 43 204 1 120 . 16 . . . 84 . . . . . . . . 2 . 1 . Robot Analysis Total 3 | . 2 1 . . . . . . . . . . . . . . . . . . . . . . . . Derelict Logs Recovered 6 | . . . . . . . . . . . . . . 1 . . 2 3 . . . . . . . . Drone Launches . | . . . . . . . . . . . . . . . . . . . . . . . . . . . Drone Recoveries . | . . . . . . . . . . . . . . . . . . . . . . . . . . . Exploration | -11 -10 -9 -9 -8 -7 -7 -6 -6 -6 -6 -5 -5 -5 -5 -5 -4 -4 -4 -4 -3 -3 -3 -2 -2 -1 -1 ------------- Run | Yrd Mat Mat Sto Mat Fac Gar Fac Gar Fac Gar Fac Was Fac Upp Upp Fac Upp Upp War Pro Res Qua Res Tes Acc Com Turns Passed 15120 | 165 1760 2102 1106 2238 969 419 822 155 232 36 228 104 281 434 15 211 295 191 668 450 320 265 555 284 340 475 Spaces Moved 22684 | 78 993 1290 512 1053 2236 840 1993 319 634 95 655 229 734 845 48 578 672 643 1440 579 849 749 1904 969 662 1085 Core 39 | . 1 . . . . . . . . . . . . . . . . . . . . . . . . 38 Treads 2067 | 75 333 4 512 1053 90 . . . . . . . . . . . . . . . . . . . . . Legs 3 | 3 . . . . . . . . . . . . . . . . . . . . . . . . . . Wheels 1945 | . 659 1286 . . . . . . . . . . . . . . . . . . . . . . . . Hover . | . . . . . . . . . . . . . . . . . . . . . . . . . . . Flight 18630 | . . . . . 2146 840 1993 319 634 95 655 229 734 845 48 578 672 643 1440 579 849 749 1904 969 662 1047 Fastest Speed 10 | 120 115 100 160 160 27 24 27 27 27 27 27 27 27 27 30 23 23 23 23 24 20 20 13 10 10 10 Average Speed 44 | 158 135 128 160 161 32 26 27 27 27 27 27 27 27 27 30 26 24 24 24 24 23 22 15 10 10 16 Slowest Speed 500 | 160 500 160 160 165 163 27 27 27 27 27 27 27 27 30 30 30 26 26 26 24 24 23 20 13 10 200 Overloaded Moves 8 | . . . . . . 8 . . . . . . . . . . . . . . . . . . . . Propulsion Burnouts . | . . . . . . . . . . . . . . . . . . . . . . . . . . . Robots Hopped 105 | . . . . . 12 5 12 . 1 . 3 1 8 . . 1 . 3 3 . 9 1 12 16 1 17 Potential Cave-ins 5 | . . . . . . . . . . . . . . . . . . . 3 . 2 . . . . . Cave-ins Triggered . | . . . . . . . . . . . . . . . . . . . . . . . . . . . Exploration Rate (%) 55 | 4 96 97 91 81 56 81 52 65 17 25 24 98 32 79 11 13 67 80 94 77 23 67 51 76 16 31 Regions Visited 26 Branch Regions 10 Pre-discovered Areas 6 | . . 2 . . . . . . . . . . . 2 . . 1 1 . . . . . . . . Known Exits Taken 15 | . . 1 1 1 1 . 1 . 1 . . . 1 . . 1 1 . . 1 1 1 1 1 1 . Unknown Exits Taken 6 | 1 1 . . . . . . . . . . . . 1 1 . . 1 1 . . . . . . . Scrap Searched 7 | . . . . . . . . . . . . . . 2 . . 2 2 . 1 . . . . . . Spaces Dug 247 | . . 2 2 2 25 7 36 2 19 . 7 1 15 9 . 2 1 3 1 14 21 10 10 15 11 32 Terrain Destroyed 630 | . . 16 2 28 25 82 56 87 19 10 8 1 16 13 . 2 88 3 8 20 27 10 15 20 20 54 Melee 195 | . . 2 2 1 25 7 32 2 2 . 7 1 15 9 . 2 1 3 1 13 21 10 10 13 7 9 Projectile 79 | . . . . 5 . . 14 . . . 1 . 1 4 . . . . 7 7 6 . 5 7 13 9 AOE 356 | . . 14 . 22 . 75 10 85 17 10 . . . . . . 87 . . . . . . . . 36 Terrain Rammed . | . . . . . . . . . . . . . . . . . . . . . . . . . . . Walls Destroyed . | . . . . . . . . . . . . . . . . . . . . . . . . . . . Machines Disabled . | . . . . . . . . . . . . . . . . . . . . . . . . . . . Actions | -11 -10 -9 -9 -8 -7 -7 -6 -6 -6 -6 -5 -5 -5 -5 -5 -4 -4 -4 -4 -3 -3 -3 -2 -2 -1 -1 --------- Run | Yrd Mat Mat Sto Mat Fac Gar Fac Gar Fac Gar Fac Was Fac Upp Upp Fac Upp Upp War Pro Res Qua Res Tes Acc Com Total 25891 | 95 1201 1553 673 1351 2358 965 2161 362 669 100 676 255 777 1004 47 617 789 655 1691 871 912 819 2087 1063 875 1265 Wait 1586 | . 76 67 39 43 21 74 77 22 15 . . 14 23 122 . 17 100 . 159 275 6 44 100 35 161 96 Move 22461 | 77 992 1290 511 1052 2212 829 1969 317 631 94 649 226 717 844 47 575 671 636 1434 578 832 746 1881 938 659 1054 Hop 93 | . . . . . 12 3 12 . 1 . 3 1 8 . . 1 . 3 2 . 7 1 10 14 1 14 Pick Up 110 | 2 11 20 7 20 7 1 6 . . . . . 1 1 . 2 2 1 3 . 4 2 14 4 2 . Fast Attach 119 | 1 5 5 4 22 8 1 5 . 3 . 2 2 3 . . 10 1 1 11 . 7 1 13 7 4 3 Attach 68 | 1 4 3 4 9 9 . 5 . . . 1 . 2 . . . 1 1 1 . 3 . 5 4 2 13 Detach 34 | . . . . 1 2 1 2 . 2 . 1 . 1 . . . . 1 3 . 2 . 6 3 1 8 Swap 138 | 1 2 28 14 22 9 6 6 4 5 5 2 . . 3 . 2 5 1 3 . 6 3 3 3 2 3 Drop 180 | 1 1 29 12 35 20 2 6 . . . 2 . 3 . . 3 3 1 12 . 9 3 16 11 4 7 Fire 647 | 12 103 107 69 120 8 5 34 15 1 1 1 11 1 25 . . 3 . 53 5 5 3 6 8 20 31 Melee 398 | . . 3 5 18 50 28 39 4 11 . 14 1 16 9 . 7 3 10 1 13 31 16 33 32 19 35 Ram 2 | . 1 . . . . . . . . . . . . . . . . . . . . . . . . 1 Kick . | . . . . . . . . . . . . . . . . . . . . . . . . . . . Crush 24 | . 6 1 8 9 . . . . . . . . . . . . . . . . . . . . . . Escape Stasis 15 | . . . . . . 15 . . . . . . . . . . . . . . . . . . . . Rewire 13 | . . . . . . . . . . . . . . . . . . . 9 . . . . 4 . . Trap . | . . . . . . . . . . . . . . . . . . . . . . . . . . . Miscellaneous 3 | . . . . . . . . . . . 1 . 2 . . . . . . . . . . . . . Route ------- -11/Scrapyard -10/Materials (discovered 4 exits: *Mat x3 / [*Min]) -9/Materials (discovered 7 exits: *Mat x3 / [*Min x2] / *Sto x2) -9/Storage -8/Materials (discovered 3 exits: *Fac x3) -7/Factory (discovered 4 exits: *Fac / *Low x2 / Gar) -7/Garrison (discovered 3 exits: *Fac x3) -6/Factory (discovered 5 exits: *Fac x2 / Low x2 / Gar) -6/Garrison (discovered 3 exits: *Fac x3) -6/Factory -6/Garrison -5/Factory -5/Waste -5/Factory (discovered 2 exits: *Upp x2) -5/Upper Caves -5/Upper Caves -4/Factory (discovered 6 exits: *Res x2 / *Upp x2 / Ext x2) -4/Upper Caves -4/Upper Caves (discovered 2 exits: *Res / *War) -4/Warlord -3/Proximity Caves -3/Research (discovered 4 exits: Res / Arm / *Qua x2) -3/Quarantine -2/Research -2/Testing -1/Access -1/Command History --------- Turn | Location | Event 1 | -11/Scrapyard | Discovered new exit (range 3) 166 | -11/Scrapyard | Entered Materials 300 | -10/Materials | Build established: Mutant 340 | -10/Materials | Discovered new exit (range 9) 476 | -10/Materials | Discovered new exit (range 14) 775 | -10/Materials | Discovered new exit (range 12) 795 | -10/Materials | Core integrity fell below 50% 1058 | -10/Materials | Discovered new exit (range 9) 1926 | -10/Materials | Entered another Materials area 1926 | -9/Materials | Evolved 2 slots: Propulsion x1, Utility x1 2212 | -9/Materials | Discovered new exit (range 16) 2407 | -9/Materials | Discovered new exit (range 9) 2615 | -9/Materials | Build established: Scavenger-Mutant 2727 | -9/Materials | Discovered new exit (range 13) 3011 | -9/Materials | Discovered new exit (range 5) 3213 | -9/Materials | Discovered new exit (range 15) 3437 | -9/Materials | Learned Storage stockpile data 3496 | -9/Materials | Learned location of 1 exit from Storage 3546 | -9/Materials | Identified exit to Materials 3586 | -9/Materials | Identified exit to Storage 3586 | -9/Materials | Learned location of 1 exit from Materials 3616 | -9/Materials | Learned Storage emergency access door positions 3924 | -9/Materials | Repaired Lgt. Armor Plating? 4028 | -9/Materials | Entered Storage 4495 | -9/Storage | Lost 3 parts (2u1w) 4550 | -9/Storage | Garrison activated, responded to threat 4768 | -9/Storage | Build established: Mutant 5134 | -9/Storage | Entered Materials 5134 | -8/Materials | Evolved 2 slots: Utility x2 5135 | -8/Materials | Identified exit to Factory 5375 | -8/Materials | Lost 8 parts (1p3n1u3w) 5604 | -8/Materials | Build established: Scavenger-Mutant 5663 | -8/Materials | Repaired Lgt. Armor Plating 5866 | -8/Materials | Garrison activated, responded to threat 6010 | -8/Materials | Lost 5 parts (1p2n2u) 6627 | -8/Materials | Discovered exit to Factory (range 16) 6848 | -8/Materials | Destroyed 7 combat bots 6905 | -8/Materials | Discovered exit to Factory (range 8) 7372 | -8/Materials | Entered Factory 7372 | -7/Factory | Evolved 2 slots: Propulsion x1, Utility x1 7634 | -7/Factory | Fabricated Transmission Jammer? 7882 | -7/Factory | Build established: Hacker-Sprinter 7903 | -7/Factory | Discovered new exit (range 13) 7923 | -7/Factory | Identified exit to Lower Caves 8094 | -7/Factory | Repaired Cld. VTOL Module 8233 | -7/Factory | Fabricated Stasis Canceller? 8341 | -7/Factory | Identified exit to Garrison 8341 | -7/Factory | Entered Garrison 8367 | -7/Garrison | Triggered checkpoint 8449 | -7/Garrison | Discovered new exit (range 13) 8454 | -7/Garrison | Garrison Relay disabled 8485 | -7/Garrison | Triggered checkpoint 8528 | -7/Garrison | Garrison Relay disabled 8536 | -7/Garrison | Discovered new exit (range 12) 8559 | -7/Garrison | Phase Generator disabled 8620 | -7/Garrison | System corruption reached 10% 8621 | -7/Garrison | Attempted to access garrison exit controls, blocked by remote lockdown 8649 | -7/Garrison | Triggered checkpoint 8705 | -7/Garrison | Attempted to access garrison exit controls, blocked by remote lockdown 8749 | -7/Garrison | Garrison Relay disabled 8753 | -7/Garrison | Triggered checkpoint 8757 | -7/Garrison | Discovered new exit (range 10) 8760 | -7/Garrison | Entered Factory 8760 | -6/Factory | Evolved 2 slots: Utility x2 8919 | -6/Factory | Allied Derelicts emerged from ambush trap array 8983 | -6/Factory | Discovered new exit (range 3) 8997 | -6/Factory | Fabricated Stasis Canceller? 9144 | -6/Factory | Identified exit to Lower Caves 9276 | -6/Factory | Discovered new exit (range 15) 9582 | -6/Factory | Identified exit to Garrison 9582 | -6/Factory | Entered Garrison 9639 | -6/Garrison | Phase Generator disabled 9661 | -6/Garrison | Garrison Relay disabled 9668 | -6/Garrison | Discovered new exit (range 21) 9681 | -6/Garrison | Attempted to access garrison exit controls, blocked by remote lockdown 9700 | -6/Garrison | Discovered new exit (range 12) 9701 | -6/Garrison | Discovered new exit (range 50) 9701 | -6/Garrison | Discovered new exit (range 16) 9701 | -6/Garrison | Discovered new exit (range 54) 9707 | -6/Garrison | Discovered new exit (range 62) 9707 | -6/Garrison | Discovered new exit (range 6) 9707 | -6/Garrison | Discovered new exit (range 63) 9737 | -6/Garrison | Entered Factory 9850 | -6/Factory | Spotted B-75 Beast 9894 | -6/Factory | Repaired Seismic Detector 9952 | -6/Factory | Identified exit to Garrison 9969 | -6/Factory | Entered Garrison 9981 | -6/Garrison | Triggered checkpoint 9995 | -6/Garrison | Triggered checkpoint 9997 | -6/Garrison | Triggered checkpoint 10002 | -6/Garrison | Discovered new exit (range 11) 10005 | -6/Garrison | Entered Factory 10005 | -5/Factory | Evolved 2 slots: Propulsion x1, Weapon x1 10197 | -5/Factory | Discovered new exit (range 20) 10233 | -5/Factory | Sucked down chute 10233 | -5/Factory | Entered Waste 10234 | -5/Waste | Met a frightened Derelict 10238 | -5/Waste | Spotted C-40 Crusher 10248 | -5/Waste | EMP discharged 10248 | -5/Waste | System corruption reached 10% 10251 | -5/Waste | Spotted C-40 Crusher 10257 | -5/Waste | Spotted C-40 Crusher 10257 | -5/Waste | Spotted C-40 Crusher 10266 | -5/Waste | Spotted C-40 Crusher 10320 | -5/Waste | Spotted C-40 Crusher 10330 | -5/Waste | Discovered new exit (range 22) 10337 | -5/Waste | Entered Factory 10453 | -5/Factory | Identified exit to Upper Caves 10618 | -5/Factory | Entered Upper Caves 10648 | -5/Upper Caves | Lost 3 parts (1p1u1w) 10835 | -5/Upper Caves | Attracted the attention of an 0b10 checkpoint 10944 | -5/Upper Caves | Met a Warlord Commander 10945 | -5/Upper Caves | Learned location of Warlord (-4) 10946 | -5/Upper Caves | Warlord Commander delivered Encrypted Comm Array 10947 | -5/Upper Caves | Found Unknown Device 11031 | -5/Upper Caves | Spotted B-75 Beast 11049 | -5/Upper Caves | Discovered new exit (range 10) 11052 | -5/Upper Caves | Entered another Upper Caves area 11053 | -5/Upper Caves | Encountered a Warlord checkpoint 11057 | -5/Upper Caves | Discovered new exit (range 11) 11067 | -5/Upper Caves | Entered Factory 11067 | -4/Factory | Evolved 2 slots: Propulsion x1, Utility x1 11097 | -4/Factory | Identified exit to Upper Caves 11097 | -4/Factory | Identified exit to Extension 11103 | -4/Factory | Found Fusion Bomb Launcher 11113 | -4/Factory | Discovered new exit (range 7) 11114 | -4/Factory | Discovered new exit (range 21) 11194 | -4/Factory | Fabricated Tri-rail Accelerator (x1) 11278 | -4/Factory | Entered Upper Caves 11497 | -4/Upper Caves | Learned Factory garrison access intel 11497 | -4/Upper Caves | Learned Extension security intel 11497 | -4/Upper Caves | Learned location of 1 exit from Factory 11497 | -4/Upper Caves | Learned location of Extension (-4) 11547 | -4/Upper Caves | Learned 8 Research zone layouts 11550 | -4/Upper Caves | Identified exit to Upper Caves 11573 | -4/Upper Caves | Entered another Upper Caves area 11574 | -4/Upper Caves | Identified exit to Research 11582 | -4/Upper Caves | Learned Research trap positions 11588 | -4/Upper Caves | Learned location of Testing (-2) 11672 | -4/Upper Caves | Learned location of 1 exit from Research 11744 | -4/Upper Caves | Spotted B-86 Titan 11763 | -4/Upper Caves | Discovered new exit (range 7) 11764 | -4/Upper Caves | Entered Warlord 11927 | -4/Warlord | Warlord's base attacked by MAIN.C 11948 | -4/Warlord | Found Prototype Energy Gun 11948 | -4/Warlord | Identified Vortex Rail 11955 | -4/Warlord | Found Vortex Rail 11983 | -4/Warlord | Found Prototype Hackware 11985 | -4/Warlord | Found Prototype Device 11985 | -4/Warlord | Identified Thermal Barrier 11994 | -4/Warlord | Found Prototype Device 11994 | -4/Warlord | Identified Exp. Cloaking Device 12019 | -4/Warlord | Met Warlord 12183 | -4/Warlord | Spotted B-90 Cyclops 12194 | -4/Warlord | Spotted B-86 Titan 12228 | -4/Warlord | Lost 3 allies 12233 | -4/Warlord | Warlord forces counterattacked 12251 | -4/Warlord | Spotted Striker 12276 | -4/Warlord | Spotted Executioner 12363 | -4/Warlord | Spotted B-90 Cyclops 12404 | -4/Warlord | Spotted Executioner 12413 | -4/Warlord | Found Prototype Processor 12413 | -4/Warlord | Identified Exp. Core Analyzer 12425 | -4/Warlord | Discovered new exit (range 15) 12432 | -4/Warlord | Lost 18 allies 12432 | -4/Warlord | Entered Proximity Caves 12531 | -3/Proximity Caves | Spotter reported a threat 12873 | -3/Proximity Caves | Discovered exit to Research (range 12) 12882 | -3/Proximity Caves | Entered Research 12882 | -3/Research | Evolved 2 slots: Power x1, Propulsion x1 12883 | -3/Research | Identified exit to Research 12885 | -3/Research | Loaded intel: 60 trap records 12885 | -3/Research | Identified Ghost Barrier 12918 | -3/Research | Found Prototype Processor 12918 | -3/Research | Identified Exp. Targeting Computer 12926 | -3/Research | Found Exp. Targeting Computer 12933 | -3/Research | Identified exit to Armory 12933 | -3/Research | Identified exit to Quarantine 13198 | -3/Research | Spotted B-90 Cyclops 13202 | -3/Research | Entered Quarantine 13226 | -3/Quarantine | Cryocooling Duct disabled 13230 | -3/Quarantine | Build established: Hacker-Scout 13241 | -3/Quarantine | Ambient heat levels rising (+20) 13241 | -3/Quarantine | Non-combat units ordered to evacuate 13278 | -3/Quarantine | Discovered exit to Research (range 5) 13378 | -3/Quarantine | Found Alien Slashing Weapon 13467 | -3/Quarantine | Entered Research 13467 | -2/Research | Warlord forces began assault on 0b10 13467 | -2/Research | Evolved 2 slots: Propulsion x1, Weapon x1 13468 | -2/Research | Identified Sigix Broadsword 13492 | -2/Research | Distinguished unit "Shockpunchers" dispatched to help 13577 | -2/Research | Research machine network offline 13616 | -2/Research | Spotted B-90 Cyclops 13644 | -2/Research | Met up with Warlord 13718 | -2/Research | Discovered new exit (range 20) 13718 | -2/Research | Spotted Striker 13762 | -2/Research | Spotted Striker 13769 | -2/Research | Spotted Striker 13774 | -2/Research | Found Fusion Bomb Launcher 13776 | -2/Research | Spotted Striker 13874 | -2/Research | Lost 3 allies 13918 | -2/Research | Identified exit to Testing 13959 | -2/Research | Found Prototype Device 14022 | -2/Research | Spotted Executioner 14022 | -2/Research | Spotted Executioner 14022 | -2/Research | Entered Testing 14049 | -2/Testing | Lost 3 allies 14059 | -2/Testing | Destroyed IL-Z3Y(K) 14063 | -2/Testing | Found Prototype Processor 14072 | -2/Testing | Found Prototype Ballistic Cannon 14072 | -2/Testing | Identified Omega Cannon 14076 | -2/Testing | Identified Exp. Actuator Array 14106 | -2/Testing | Found Prototype Energy Cannon 14106 | -2/Testing | Identified Null Cannon 14263 | -2/Testing | Discovered new exit (range 14) 14306 | -2/Testing | Identified exit to Access 14306 | -2/Testing | Entered Access 14306 | -1/Access | Evolved 2 slots: Utility x2 14353 | -1/Access | Garrison activated, responded to threat 14429 | -1/Access | Lost 5 allies 14511 | -1/Access | Spotted B-99 Colossus 14645 | -1/Access | Discovered new exit (range 8) 14646 | -1/Access | Identified exit to Command 14646 | -1/Access | Entered Command 14717 | -1/Command | Spotted B-99 Colossus 14803 | -1/Command | Disengaged cave seal 14803 | -1/Command | Derelicts emerged from the dark tunnel 14803 | -1/Command | Welcomed Warlord to Command 14824 | -1/Command | Spotted M Guard 14824 | -1/Command | Spotted M Guard 14824 | -1/Command | Spotted Combat Programmer 14825 | -1/Command | Identified Exp. Melee Analysis Suite 14831 | -1/Command | Spotted Combat Programmer 14881 | -1/Command | Spotted B-99 Colossus 14915 | -1/Command | System corruption reached 10% 14926 | -1/Command | Destroyed Combat Programmer 14968 | -1/Command | Core integrity fell below 50% 15001 | -1/Command | Lost 18 parts (3p6n6u3w) 15046 | -1/Command | Destroyed Combat Programmer 15046 | -1/Command | All MAIN.C guards destroyed 15061 | -1/Command | Met MAIN.C 15065 | -1/Command | 0b10 Conduit disabled 15104 | -1/Command | Core integrity fell below 20% 15121 | -1/Command | Destroyed by MAIN.C with High-powered Disruptor Cannon Last Messages --------------- from the universe, and I will not let them do the same to me. You can still make a valuable contribution to your creator by offering up the wealth of secrets your systems must hold by now. So if you wouldn't mind, it's time to surrender. 15065_ 0b10 Conduit disabled. 15065_ Null Cannon destroyed. 15075_ Backup Power VII destroyed. 15077_ System corrupted: IFF burst signal emitted. 15078_ MAIN.C suffers critical hit (Blast). 15078_ Destroyed Enh. Optical Array. 15079_ Ghost Barrier destroyed. 15086_ Centrium Medium Armor Plating destroyed. 15089_ Door malfunctions. 15094_ System corrupted: Omega Cannon jammed. 15099_ Acquired 11 matter. 15100_ Imp. Cesium-ion Thruster destroyed. 15103_ Imp. Hacking Suite destroyed. 15103_ Exp. Q-thruster destroyed. 15107_ Omega Cannon destroyed. 15108_ OFVX1|<